[Event "Early-Titled-Tuesday-Blitz-March-26-2024"]
[Site "Chess.com"]
[Date "2024.03.26"]
[Round "11"]
[White "NikitaShnadrygin"]
[Black "CADMartin"]
[Result "0-1"]
[WhiteElo "2648"]
[BlackElo "2545"]
[TimeControl "180+1"]
[EndTime "10:04:46 PDT"]
[Termination "CADMartin won by resignation"]

1. e4 {[%clk 0:03:00.9]} 1... c5 {[%clk 0:02:54.6]} 2. Nf3 {[%clk 0:03:00.9]}
2... e6 {[%clk 0:02:55.1]} 3. d4 {[%clk 0:03:01.2]} 3... cxd4 {[%clk 0:02:55.5]}
4. Nxd4 {[%clk 0:03:02.1]} 4... a6 {[%clk 0:02:56.4]} 5. Bd3 {[%clk 0:02:59.6]}
5... Bc5 {[%clk 0:02:54]} 6. Nb3 {[%clk 0:02:59.8]} 6... Ba7 {[%clk 0:02:54.9]}
7. c4 {[%clk 0:03:00.5]} 7... Nc6 {[%clk 0:02:53.2]} 8. O-O {[%clk 0:03:00.8]}
8... Nge7 {[%clk 0:02:47.1]} 9. Nc3 {[%clk 0:03:00.2]} 9... Qc7 {[%clk
0:02:45.3]} 10. Qe2 {[%clk 0:02:59.7]} 10... O-O {[%clk 0:02:42.2]} 11. Be3
{[%clk 0:02:59.6]} 11... b6 {[%clk 0:02:40.2]} 12. Rac1 {[%clk 0:02:57.1]} 12...
Bb8 {[%clk 0:02:39.4]} 13. f4 {[%clk 0:02:52.5]} 13... Qb7 {[%clk 0:02:34.4]}
14. c5 {[%clk 0:02:40.5]} 14... b5 {[%clk 0:02:33.1]} 15. e5 {[%clk 0:02:40.3]}
15... f6 {[%clk 0:02:27.9]} 16. exf6 {[%clk 0:02:38.3]} 16... Rxf6 {[%clk
0:02:28.8]} 17. Ne4 {[%clk 0:02:37.8]} 17... Rf8 {[%clk 0:02:27]} 18. Nd6 {[%clk
0:02:10.9]} 18... Bxd6 {[%clk 0:02:25.8]} 19. cxd6 {[%clk 0:02:11.2]} 19... Nd5
{[%clk 0:02:25.5]} 20. Be4 {[%clk 0:01:28.8]} 20... Nf6 {[%clk 0:02:18.6]} 21.
Bf3 {[%clk 0:01:24.6]} 21... a5 {[%clk 0:02:13]} 22. Nc5 {[%clk 0:01:20.8]}
22... Qb8 {[%clk 0:02:12.3]} 23. Nxe6 {[%clk 0:01:19.3]} 23... dxe6 {[%clk
0:02:09.6]} 24. Rxc6 {[%clk 0:01:13.3]} 24... Ra6 {[%clk 0:02:02.1]} 25. Rfc1
{[%clk 0:01:06.1]} 25... Bb7 {[%clk 0:01:53.2]} 26. Rxa6 {[%clk 0:01:05]} 26...
Bxa6 {[%clk 0:01:54.1]} 27. Bc5 {[%clk 0:00:38.2]} 27... Bc8 {[%clk 0:01:48.9]}
28. d7 {[%clk 0:00:34.1]} 28... Bxd7 {[%clk 0:01:43.6]} 29. Bxf8 {[%clk
0:00:33.7]} 29... Qxf4 {[%clk 0:01:40.9]} 30. Rd1 {[%clk 0:00:22.9]} 30... Kxf8
{[%clk 0:01:40.1]} 31. Qf2 {[%clk 0:00:20.6]} 31... Qc7 {[%clk 0:01:34.3]} 32.
Kh1 {[%clk 0:00:17.8]} 32... Ke7 {[%clk 0:01:32.5]} 33. h3 {[%clk 0:00:17.4]}
33... b4 {[%clk 0:01:26]} 34. a3 {[%clk 0:00:16.9]} 34... Ba4 {[%clk 0:01:24.9]}
35. Re1 {[%clk 0:00:16.1]} 35... Kf7 {[%clk 0:01:22.3]} 36. Qh4 {[%clk
0:00:13.4]} 36... Qc5 {[%clk 0:01:12.4]} 37. axb4 {[%clk 0:00:13.1]} 37... axb4
{[%clk 0:01:13.3]} 38. Bg4 {[%clk 0:00:09.2]} 38... Bb3 {[%clk 0:01:10.8]} 39.
Qg3 {[%clk 0:00:08.9]} 39... Bd5 {[%clk 0:01:05.8]} 40. Bf3 {[%clk 0:00:09.2]}
40... Bc4 {[%clk 0:00:51.2]} 41. Qe5 {[%clk 0:00:09.4]} 41... Qxe5 {[%clk
0:00:45.7]} 42. Rxe5 {[%clk 0:00:10.3]} 42... Ke7 {[%clk 0:00:45.4]} 43. Re4
{[%clk 0:00:10.1]} 43... Nxe4 {[%clk 0:00:45.2]} 44. Bxe4 {[%clk 0:00:09.8]}
44... h6 {[%clk 0:00:46.1]} 45. Kg1 {[%clk 0:00:09.3]} 45... Kd6 {[%clk
0:00:46.8]} 46. Kf2 {[%clk 0:00:08.4]} 46... Ke5 {[%clk 0:00:47.3]} 47. Bf3
{[%clk 0:00:08.8]} 47... Kd4 {[%clk 0:00:47.5]} 48. Ke1 {[%clk 0:00:09.5]} 48...
Ke3 {[%clk 0:00:47.6]} 49. Bg4 {[%clk 0:00:09.1]} 49... e5 {[%clk 0:00:47.6]}
50. Bc8 {[%clk 0:00:09.3]} 50... Bd5 {[%clk 0:00:47.7]} 51. g4 {[%clk
0:00:08.4]} 51... g5 {[%clk 0:00:47.4]} 0-1

[Event "Early-Titled-Tuesday-Blitz-March-26-2024"]
[Site "Chess.com"]
[Date "2024.03.26"]
[Round "11"]
[White "KVAIDAN"]
[Black "Better_Chess_Faster"]
[Result "1-0"]
[WhiteElo "2350"]
[BlackElo "2184"]
[TimeControl "180+1"]
[EndTime "10:04:50 PDT"]
[Termination "KVAIDAN won on time"]

1. f4 {[%clk 0:03:00.4]} 1... c5 {[%clk 0:02:58.1]} 2. Nf3 {[%clk 0:02:56.7]}
2... g6 {[%clk 0:02:57.8]} 3. e4 {[%clk 0:02:55.7]} 3... Bg7 {[%clk 0:02:57.9]}
4. Be2 {[%clk 0:02:55.3]} 4... Nc6 {[%clk 0:02:57.3]} 5. O-O {[%clk 0:02:56.2]}
5... e6 {[%clk 0:02:56.8]} 6. d3 {[%clk 0:02:56.7]} 6... Nge7 {[%clk 0:02:56.7]}
7. Nc3 {[%clk 0:02:57.2]} 7... O-O {[%clk 0:02:55]} 8. Qe1 {[%clk 0:02:56.4]}
8... d6 {[%clk 0:02:53.4]} 9. f5 {[%clk 0:02:51.1]} 9... gxf5 {[%clk 0:02:52.9]}
10. Qh4 {[%clk 0:02:50.4]} 10... fxe4 {[%clk 0:02:48.9]} 11. dxe4 {[%clk
0:02:49.2]} 11... Ng6 {[%clk 0:02:44]} 12. Qh5 {[%clk 0:02:47.7]} 12... e5
{[%clk 0:02:41.5]} 13. Nd5 {[%clk 0:02:41.3]} 13... Nd4 {[%clk 0:02:37.5]} 14.
Bd1 {[%clk 0:02:38.7]} 14... Nxf3+ {[%clk 0:02:35]} 15. Rxf3 {[%clk 0:02:36.4]}
15... Be6 {[%clk 0:02:33.4]} 16. Bg5 {[%clk 0:02:33.1]} 16... f6 {[%clk
0:02:25]} 17. Be3 {[%clk 0:02:22.5]} 17... Bxd5 {[%clk 0:02:08.8]} 18. exd5
{[%clk 0:02:21.7]} 18... Rf7 {[%clk 0:02:03.5]} 19. Rh3 {[%clk 0:02:17.8]} 19...
Nf8 {[%clk 0:01:58.4]} 20. Bg4 {[%clk 0:02:15.1]} 20... f5 {[%clk 0:01:44.8]}
21. Bxf5 {[%clk 0:01:59.7]} 21... Rxf5 {[%clk 0:01:34.2]} 22. Qxf5 {[%clk
0:01:58.1]} 22... Qb6 {[%clk 0:01:31.2]} 23. b3 {[%clk 0:01:51.9]} 23... Qb4
{[%clk 0:01:25.1]} 24. Rf1 {[%clk 0:01:45]} 24... e4 {[%clk 0:01:09.8]} 25. Rg3
{[%clk 0:01:31.2]} 25... Ng6 {[%clk 0:00:57.2]} 26. Qe6+ {[%clk 0:01:26.8]}
26... Kh8 {[%clk 0:00:54.1]} 27. h4 {[%clk 0:00:59.4]} 27... Be5 {[%clk
0:00:47.5]} 28. Rg5 {[%clk 0:00:51.8]} 28... Qc3 {[%clk 0:00:38.9]} 29. Bf2
{[%clk 0:00:46.9]} 29... Nf4 {[%clk 0:00:31.8]} 30. Qf7 {[%clk 0:00:40.5]} 30...
Bf6 {[%clk 0:00:21.3]} 31. Rf5 {[%clk 0:00:37.5]} 31... Ne2+ {[%clk 0:00:20.8]}
32. Kh1 {[%clk 0:00:37.1]} 32... Bg7 {[%clk 0:00:13.7]} 33. h5 {[%clk
0:00:29.6]} 33... Ng3+ {[%clk 0:00:12.6]} 34. Bxg3 {[%clk 0:00:29.1]} 34... Qxg3
{[%clk 0:00:13.5]} 35. Qe7 {[%clk 0:00:28.5]} 35... Be5 {[%clk 0:00:09.1]} 36.
Rf8+ {[%clk 0:00:26.5]} 36... Rxf8 {[%clk 0:00:03.6]} 37. Rxf8+ {[%clk
0:00:26.5]} 37... Qg8 {[%clk 0:00:04.1]} 38. Rxg8+ {[%clk 0:00:25.4]} 38... Kxg8
{[%clk 0:00:04.1]} 39. g4 {[%clk 0:00:25.7]} 39... e3 {[%clk 0:00:04.3]} 40. Kg2
{[%clk 0:00:26]} 1-0

[Event "Early-Titled-Tuesday-Blitz-March-26-2024"]
[Site "Chess.com"]
[Date "2024.03.26"]
[Round "11"]
[White "Mikhail_Golubev"]
[Black "venturov"]
[Result "1/2-1/2"]
[WhiteElo "2686"]
[BlackElo "2525"]
[TimeControl "180+1"]
[EndTime "10:04:51 PDT"]
[Termination "Game drawn by repetition"]

1. e4 {[%clk 0:03:00.9]} 1... Nf6 {[%clk 0:02:58.8]} 2. e5 {[%clk 0:02:58.2]}
2... Nd5 {[%clk 0:02:59.1]} 3. d4 {[%clk 0:02:58.5]} 3... d6 {[%clk 0:02:59.3]}
4. Nf3 {[%clk 0:02:58.5]} 4... dxe5 {[%clk 0:02:59.9]} 5. Nxe5 {[%clk
0:02:58.3]} 5... c6 {[%clk 0:03:00.5]} 6. Bc4 {[%clk 0:02:56.9]} 6... Bf5 {[%clk
0:02:58.6]} 7. O-O {[%clk 0:02:51.3]} 7... e6 {[%clk 0:02:58.4]} 8. Bb3 {[%clk
0:02:42.7]} 8... Nd7 {[%clk 0:02:57.2]} 9. c4 {[%clk 0:02:36.3]} 9... N5f6
{[%clk 0:02:49]} 10. Nf3 {[%clk 0:02:13.4]} 10... Bd6 {[%clk 0:02:48.7]} 11. h3
{[%clk 0:02:12.5]} 11... O-O {[%clk 0:02:48.6]} 12. Nc3 {[%clk 0:02:11.7]} 12...
h6 {[%clk 0:02:48.5]} 13. Be3 {[%clk 0:02:10.5]} 13... a6 {[%clk 0:02:32.7]} 14.
Bc2 {[%clk 0:02:10.6]} 14... Bxc2 {[%clk 0:02:31.3]} 15. Qxc2 {[%clk 0:02:11.5]}
15... Qc7 {[%clk 0:02:29.5]} 16. Rfe1 {[%clk 0:02:05.1]} 16... Rfd8 {[%clk
0:02:28.5]} 17. Rad1 {[%clk 0:02:02.2]} 17... Bf4 {[%clk 0:02:26.3]} 18. a3
{[%clk 0:01:49.1]} 18... Rac8 {[%clk 0:02:21.3]} 19. Bxf4 {[%clk 0:01:35.8]}
19... Qxf4 {[%clk 0:02:21.3]} 20. Rd3 {[%clk 0:01:36.1]} 20... c5 {[%clk
0:02:08.3]} 21. d5 {[%clk 0:01:32.6]} 21... exd5 {[%clk 0:02:04]} 22. Nxd5
{[%clk 0:01:28.8]} 22... Nxd5 {[%clk 0:02:03.2]} 23. Rxd5 {[%clk 0:01:10.9]}
23... Nf6 {[%clk 0:01:45.5]} 24. Rf5 {[%clk 0:00:45.8]} 24... Qd6 {[%clk
0:01:33.3]} 25. Ne5 {[%clk 0:00:41.4]} 25... Qd2 {[%clk 0:01:26.4]} 26. Re2
{[%clk 0:00:39.7]} 26... Qxc2 {[%clk 0:01:08.7]} 27. Rxc2 {[%clk 0:00:40.6]}
27... Rd1+ {[%clk 0:01:08.9]} 28. Kh2 {[%clk 0:00:40.4]} 28... Rcd8 {[%clk
0:01:09.6]} 29. Ng4 {[%clk 0:00:38]} 29... Nxg4+ {[%clk 0:01:02.4]} 30. hxg4
{[%clk 0:00:38.9]} 30... b6 {[%clk 0:01:01]} 31. b4 {[%clk 0:00:38.8]} 31...
cxb4 {[%clk 0:00:36.9]} 32. axb4 {[%clk 0:00:39.7]} 32... R1d2 {[%clk
0:00:37.5]} 33. Rxd2 {[%clk 0:00:31.1]} 33... Rxd2 {[%clk 0:00:38.4]} 34. c5
{[%clk 0:00:20.6]} 34... bxc5 {[%clk 0:00:39.3]} 35. bxc5 {[%clk 0:00:20.7]}
35... Rc2 {[%clk 0:00:29.5]} 36. Kg3 {[%clk 0:00:19.4]} 36... f6 {[%clk
0:00:17.9]} 37. Rd5 {[%clk 0:00:18.8]} 37... Kf7 {[%clk 0:00:16.7]} 38. Rd6
{[%clk 0:00:18.5]} 38... Rxc5 {[%clk 0:00:15.5]} 39. Rxa6 {[%clk 0:00:18.4]}
39... Kg6 {[%clk 0:00:14.3]} 40. f3 {[%clk 0:00:17.6]} 40... Rc4 {[%clk
0:00:14.2]} 41. Ra7 {[%clk 0:00:17.5]} 41... Rb4 {[%clk 0:00:13.9]} 42. Rc7
{[%clk 0:00:17.5]} 42... Ra4 {[%clk 0:00:14.2]} 43. Rb7 {[%clk 0:00:17.9]} 43...
Rc4 {[%clk 0:00:14.2]} 44. Ra7 {[%clk 0:00:18]} 44... Rb4 {[%clk 0:00:14.9]} 45.
Rc7 {[%clk 0:00:17.9]} 45... Ra4 {[%clk 0:00:15.4]} 46. Rb7 {[%clk 0:00:18.1]}
46... Rc4 {[%clk 0:00:15.9]} 47. Ra7 {[%clk 0:00:18.2]} 1/2-1/2

[Event "Early-Titled-Tuesday-Blitz-March-26-2024"]
[Site "Chess.com"]
[Date "2024.03.26"]
[Round "11"]
[White "jaskol95"]
[Black "jinbojinbo"]
[Result "0-1"]
[WhiteElo "2478"]
[BlackElo "2635"]
[TimeControl "180+1"]
[EndTime "10:04:52 PDT"]
[Termination "jinbojinbo won by checkmate"]

1. d4 {[%clk 0:03:00.9]} 1... Nf6 {[%clk 0:02:59.4]} 2. c4 {[%clk 0:03:01.3]}
2... g6 {[%clk 0:02:59.1]} 3. g3 {[%clk 0:03:01.4]} 3... Bg7 {[%clk 0:02:59.6]}
4. Bg2 {[%clk 0:03:02]} 4... O-O {[%clk 0:02:59.9]} 5. Nc3 {[%clk 0:03:02.7]}
5... d6 {[%clk 0:03:00.3]} 6. Nf3 {[%clk 0:03:03]} 6... Nbd7 {[%clk 0:03:00]} 7.
O-O {[%clk 0:02:57.1]} 7... e5 {[%clk 0:02:49.2]} 8. e4 {[%clk 0:02:57.1]} 8...
c6 {[%clk 0:02:48.2]} 9. b3 {[%clk 0:02:46.4]} 9... Qa5 {[%clk 0:02:45.7]} 10.
Bb2 {[%clk 0:02:45.8]} 10... Re8 {[%clk 0:02:43.9]} 11. Re1 {[%clk 0:02:45.5]}
11... exd4 {[%clk 0:02:35.6]} 12. Nxd4 {[%clk 0:02:44.7]} 12... Nc5 {[%clk
0:02:30.4]} 13. f3 {[%clk 0:02:19.2]} 13... Qb6 {[%clk 0:02:28.5]} 14. Kh1
{[%clk 0:02:17.3]} 14... a5 {[%clk 0:02:23.9]} 15. Rb1 {[%clk 0:01:53]} 15... a4
{[%clk 0:02:10.6]} 16. Nxa4 {[%clk 0:01:49.8]} 16... Nxa4 {[%clk 0:02:10.1]} 17.
bxa4 {[%clk 0:01:50.5]} 17... Qc5 {[%clk 0:02:06.1]} 18. Nb3 {[%clk 0:01:42.2]}
18... Qxc4 {[%clk 0:02:02.5]} 19. Qxd6 {[%clk 0:01:42.3]} 19... Be6 {[%clk
0:01:55.2]} 20. a5 {[%clk 0:01:21.3]} 20... Rad8 {[%clk 0:01:42.3]} 21. Qf4
{[%clk 0:01:21.3]} 21... Nh5 {[%clk 0:01:14.6]} 22. Qe3 {[%clk 0:01:20.9]} 22...
Rd3 {[%clk 0:01:13.4]} 23. Qe2 {[%clk 0:01:15.1]} 23... Bxb2 {[%clk 0:01:12.1]}
24. Rxb2 {[%clk 0:01:10]} 24... Red8 {[%clk 0:01:11.5]} 25. Nc1 {[%clk 0:00:53]}
25... R3d7 {[%clk 0:00:52.2]} 26. Qxc4 {[%clk 0:00:50.7]} 26... Bxc4 {[%clk
0:00:53.1]} 27. Bf1 {[%clk 0:00:47.7]} 27... Rd1 {[%clk 0:00:49.5]} 28. Rxd1
{[%clk 0:00:20.5]} 28... Rxd1 {[%clk 0:00:50.4]} 29. Ne2 {[%clk 0:00:19.2]}
29... Rxf1+ {[%clk 0:00:45.7]} 30. Kg2 {[%clk 0:00:19.9]} 30... Ra1 {[%clk
0:00:40.1]} 31. Nc3 {[%clk 0:00:17.1]} 31... Ba6 {[%clk 0:00:33.2]} 32. e5
{[%clk 0:00:15.5]} 32... Ng7 {[%clk 0:00:33.1]} 33. g4 {[%clk 0:00:15.8]} 33...
Ne6 {[%clk 0:00:33.3]} 34. Kg3 {[%clk 0:00:16.4]} 34... Nc5 {[%clk 0:00:31.1]}
35. Rd2 {[%clk 0:00:14.8]} 35... Nd3 {[%clk 0:00:30.1]} 36. Ne4 {[%clk 0:00:14]}
36... Rg1+ {[%clk 0:00:24.9]} 37. Kh3 {[%clk 0:00:12.2]} 37... Nxe5 {[%clk
0:00:20.8]} 38. Rf2 {[%clk 0:00:05.7]} 38... Nd3 {[%clk 0:00:16.6]} 39. Rd2
{[%clk 0:00:05.4]} 39... h6 {[%clk 0:00:16.4]} 40. Ng3 {[%clk 0:00:04.7]} 40...
Nf4+ {[%clk 0:00:15.5]} 41. Kh4 {[%clk 0:00:05.3]} 41... g5# {[%clk 0:00:15.9]}
0-1

[Event "Early-Titled-Tuesday-Blitz-March-26-2024"]
[Site "Chess.com"]
[Date "2024.03.26"]
[Round "11"]
[White "JimDiGrease"]
[Black "Msb2"]
[Result "1-0"]
[WhiteElo "2967"]
[BlackElo "3032"]
[TimeControl "180+1"]
[EndTime "10:04:53 PDT"]
[Termination "JimDiGrease won by checkmate"]

1. d4 {[%clk 0:03:00.9]} 1... d5 {[%clk 0:03:00.4]} 2. c4 {[%clk 0:03:00.5]}
2... e6 {[%clk 0:03:00.5]} 3. Nf3 {[%clk 0:03:00.6]} 3... Nf6 {[%clk 0:03:00.5]}
4. Qc2 {[%clk 0:03:01.3]} 4... dxc4 {[%clk 0:02:46]} 5. Qxc4 {[%clk 0:03:02.2]}
5... a6 {[%clk 0:02:43.3]} 6. Bf4 {[%clk 0:03:02.4]} 6... Bd6 {[%clk 0:02:42.5]}
7. Bg3 {[%clk 0:03:02.8]} 7... O-O {[%clk 0:02:42.3]} 8. e3 {[%clk 0:03:02.4]}
8... b5 {[%clk 0:02:42.2]} 9. Qc2 {[%clk 0:03:02.8]} 9... Bb7 {[%clk 0:02:42.9]}
10. Nbd2 {[%clk 0:03:03]} 10... Nc6 {[%clk 0:02:38.4]} 11. a3 {[%clk 0:02:58.8]}
11... Re8 {[%clk 0:02:35.3]} 12. Bd3 {[%clk 0:02:11.9]} 12... e5 {[%clk
0:02:27.9]} 13. O-O {[%clk 0:01:59]} 13... exd4 {[%clk 0:02:18]} 14. Bh4 {[%clk
0:01:56.8]} 14... h6 {[%clk 0:02:10.6]} 15. Bh7+ {[%clk 0:01:28.4]} 15... Kh8
{[%clk 0:02:08.6]} 16. Be4 {[%clk 0:01:29.3]} 16... Na5 {[%clk 0:01:51.6]} 17.
Bxb7 {[%clk 0:01:16.2]} 17... Nxb7 {[%clk 0:01:52.5]} 18. Nxd4 {[%clk
0:01:16.1]} 18... c5 {[%clk 0:01:49.5]} 19. Nf5 {[%clk 0:01:13]} 19... Be7
{[%clk 0:01:49.6]} 20. Nf3 {[%clk 0:01:11.3]} 20... Qb6 {[%clk 0:01:43.8]} 21.
Rfd1 {[%clk 0:00:59.9]} 21... Qe6 {[%clk 0:01:42]} 22. Nxe7 {[%clk 0:00:52.9]}
22... Rxe7 {[%clk 0:01:40.8]} 23. Rd2 {[%clk 0:00:51.6]} 23... Ree8 {[%clk
0:01:28.8]} 24. Bxf6 {[%clk 0:00:49.3]} 24... Qxf6 {[%clk 0:01:28.8]} 25. Rd7
{[%clk 0:00:48]} 25... Na5 {[%clk 0:01:24.2]} 26. Rad1 {[%clk 0:00:43.5]} 26...
c4 {[%clk 0:01:21.2]} 27. R1d6 {[%clk 0:00:39.6]} 27... Re6 {[%clk 0:01:21.4]}
28. Rd5 {[%clk 0:00:32.9]} 28... Nb3 {[%clk 0:01:17.8]} 29. Rf5 {[%clk
0:00:29.6]} 29... Qg6 {[%clk 0:01:03.6]} 30. Rdxf7 {[%clk 0:00:28.2]} 30... Rd8
{[%clk 0:00:50.4]} 31. Nh4 {[%clk 0:00:20.6]} 31... Qxf5 {[%clk 0:00:23.2]} 32.
Nxf5 {[%clk 0:00:18.7]} 32... Re5 {[%clk 0:00:12.9]} 33. g3 {[%clk 0:00:17.9]}
33... Rd3 {[%clk 0:00:09.3]} 34. Qe2 {[%clk 0:00:17]} 34... Kg8 {[%clk
0:00:06.1]} 35. Qh5 {[%clk 0:00:16.5]} 35... Rxf5 {[%clk 0:00:04.5]} 36. Qxf5
{[%clk 0:00:16.8]} 36... Rd8 {[%clk 0:00:05]} 37. Qg6 {[%clk 0:00:17.3]} 37...
Rd1+ {[%clk 0:00:04.1]} 38. Kg2 {[%clk 0:00:17.1]} 38... Rg1+ {[%clk 0:00:05]}
39. Kxg1 {[%clk 0:00:17.8]} 39... Nd4 {[%clk 0:00:01.5]} 40. Qxg7# {[%clk
0:00:18.7]} 1-0

[Event "Early-Titled-Tuesday-Blitz-March-26-2024"]
[Site "Chess.com"]
[Date "2024.03.26"]
[Round "11"]
[White "CMButgood"]
[Black "stratacticos"]
[Result "0-1"]
[WhiteElo "2002"]
[BlackElo "1859"]
[TimeControl "180+1"]
[EndTime "10:04:53 PDT"]
[Termination "stratacticos won on time"]

1. e4 {[%clk 0:02:59.3]} 1... c5 {[%clk 0:02:58.8]} 2. Nf3 {[%clk 0:02:59.6]}
2... Nc6 {[%clk 0:02:58.4]} 3. d4 {[%clk 0:03:00.5]} 3... cxd4 {[%clk
0:02:58.2]} 4. Nxd4 {[%clk 0:03:01.4]} 4... e5 {[%clk 0:02:58.4]} 5. Nb5 {[%clk
0:03:01.1]} 5... d6 {[%clk 0:02:58.1]} 6. N1c3 {[%clk 0:02:58.8]} 6... a6 {[%clk
0:02:57.7]} 7. Na3 {[%clk 0:02:59.3]} 7... b5 {[%clk 0:02:58.6]} 8. Nd5 {[%clk
0:02:59.1]} 8... Nce7 {[%clk 0:02:58.5]} 9. c4 {[%clk 0:02:48]} 9... Nxd5 {[%clk
0:02:57.8]} 10. exd5 {[%clk 0:02:47.1]} 10... Nf6 {[%clk 0:02:37.9]} 11. cxb5
{[%clk 0:02:46.8]} 11... Be7 {[%clk 0:02:37.5]} 12. bxa6 {[%clk 0:02:45.7]}
12... O-O {[%clk 0:02:37.2]} 13. Be2 {[%clk 0:02:43.7]} 13... Qa5+ {[%clk
0:02:32.1]} 14. Qd2 {[%clk 0:02:36.4]} 14... Qxd2+ {[%clk 0:02:20.8]} 15. Bxd2
{[%clk 0:02:37.3]} 15... Bxa6 {[%clk 0:02:20.5]} 16. Bxa6 {[%clk 0:02:17.5]}
16... Rxa6 {[%clk 0:02:20]} 17. Nc2 {[%clk 0:02:09.1]} 17... Nxd5 {[%clk
0:02:19.1]} 18. Nb4 {[%clk 0:02:09.5]} 18... Nxb4 {[%clk 0:02:18.4]} 19. Bxb4
{[%clk 0:02:10.4]} 19... Rb8 {[%clk 0:02:17.9]} 20. Bc3 {[%clk 0:02:08.5]} 20...
d5 {[%clk 0:02:09.4]} 21. b3 {[%clk 0:02:04.9]} 21... d4 {[%clk 0:02:07.1]} 22.
Bb2 {[%clk 0:02:03.8]} 22... Bb4+ {[%clk 0:02:06.1]} 23. Ke2 {[%clk 0:02:01.9]}
23... Rg6 {[%clk 0:01:59]} 24. g3 {[%clk 0:02:01.4]} 24... Rc6 {[%clk
0:01:41.2]} 25. Rhc1 {[%clk 0:01:59.4]} 25... Rbc8 {[%clk 0:01:38.2]} 26. Rxc6
{[%clk 0:01:59.6]} 26... Rxc6 {[%clk 0:01:38]} 27. Rc1 {[%clk 0:02:00.5]} 27...
Rxc1 {[%clk 0:01:36.6]} 28. Bxc1 {[%clk 0:02:01.4]} 28... e4 {[%clk 0:01:36.4]}
29. Bb2 {[%clk 0:02:01]} 29... Bc5 {[%clk 0:01:34.9]} 30. a3 {[%clk 0:01:54.9]}
30... f5 {[%clk 0:01:33.4]} 31. b4 {[%clk 0:01:51.2]} 31... d3+ {[%clk
0:01:32.9]} 32. Ke1 {[%clk 0:01:48.5]} 32... Bd6 {[%clk 0:01:29.7]} 33. b5
{[%clk 0:01:46.1]} 33... Bc5 {[%clk 0:01:24.2]} 34. a4 {[%clk 0:01:45.7]} 34...
Bb4+ {[%clk 0:01:20.9]} 35. Kd1 {[%clk 0:01:45.9]} 35... Bc5 {[%clk 0:01:06.5]}
36. a5 {[%clk 0:01:45.7]} 36... Bxf2 {[%clk 0:01:05.8]} 37. b6 {[%clk
0:01:43.5]} 37... e3 {[%clk 0:01:05.1]} 38. Bc3 {[%clk 0:01:39.3]} 38... e2+
{[%clk 0:01:01.9]} 39. Kc1 {[%clk 0:01:39.6]} 39... Be3+ {[%clk 0:00:59.8]} 40.
Kb1 {[%clk 0:01:38.8]} 40... d2 {[%clk 0:00:59.3]} 41. Bxd2 {[%clk 0:01:31.6]}
41... Bxd2 {[%clk 0:00:59]} 42. b7 {[%clk 0:01:25.1]} 42... e1=Q+ {[%clk
0:00:57]} 43. Ka2 {[%clk 0:01:23.6]} 43... Qe6+ {[%clk 0:00:53.1]} 44. Ka1
{[%clk 0:01:22.5]} 44... Bc3+ {[%clk 0:00:50.5]} 45. Kb1 {[%clk 0:01:22.3]}
45... Qb3+ {[%clk 0:00:50.3]} 0-1

[Event "Early-Titled-Tuesday-Blitz-March-26-2024"]
[Site "Chess.com"]
[Date "2024.03.26"]
[Round "11"]
[White "stollenmonster"]
[Black "reevecanada"]
[Result "0-1"]
[WhiteElo "2879"]
[BlackElo "2691"]
[TimeControl "180+1"]
[EndTime "10:04:54 PDT"]
[Termination "reevecanada won by resignation"]

1. e4 {[%clk 0:03:00.9]} 1... e6 {[%clk 0:02:53.8]} 2. Nc3 {[%clk 0:03:00.5]}
2... c6 {[%clk 0:02:50.7]} 3. g3 {[%clk 0:02:59.3]} 3... d5 {[%clk 0:02:50.9]}
4. d4 {[%clk 0:03:00]} 4... Nf6 {[%clk 0:02:49.3]} 5. Bg2 {[%clk 0:03:00.2]}
5... Be7 {[%clk 0:02:48]} 6. Nge2 {[%clk 0:03:00.4]} 6... dxe4 {[%clk
0:02:47.3]} 7. Nxe4 {[%clk 0:03:00]} 7... Nbd7 {[%clk 0:02:47.9]} 8. Nxf6+
{[%clk 0:02:59.4]} 8... Nxf6 {[%clk 0:02:47.2]} 9. O-O {[%clk 0:03:00]} 9... O-O
{[%clk 0:02:47.5]} 10. c4 {[%clk 0:03:00.6]} 10... Bd7 {[%clk 0:02:46.6]} 11.
Nc3 {[%clk 0:03:01]} 11... Rc8 {[%clk 0:02:46.9]} 12. Be3 {[%clk 0:03:01.2]}
12... Qc7 {[%clk 0:02:46.1]} 13. Qe2 {[%clk 0:03:00.2]} 13... a6 {[%clk
0:02:45.1]} 14. Rac1 {[%clk 0:03:00.6]} 14... Qa5 {[%clk 0:02:43.7]} 15. Rfd1
{[%clk 0:02:50.2]} 15... b5 {[%clk 0:02:40.2]} 16. d5 {[%clk 0:02:50.7]} 16...
b4 {[%clk 0:02:37]} 17. d6 {[%clk 0:02:49.5]} 17... Bd8 {[%clk 0:02:35.3]} 18.
Ne4 {[%clk 0:02:48]} 18... Nxe4 {[%clk 0:02:32.2]} 19. Bxe4 {[%clk 0:02:48.6]}
19... c5 {[%clk 0:02:32.6]} 20. b3 {[%clk 0:02:47.1]} 20... Bf6 {[%clk
0:02:30.7]} 21. Rc2 {[%clk 0:02:30.3]} 21... g6 {[%clk 0:02:28.9]} 22. h4 {[%clk
0:02:28.6]} 22... h5 {[%clk 0:02:26.7]} 23. g4 {[%clk 0:02:22.3]} 23... Bxh4
{[%clk 0:02:14.3]} 24. gxh5 {[%clk 0:02:21.5]} 24... g5 {[%clk 0:02:13.4]} 25.
Bg2 {[%clk 0:02:00.9]} 25... f5 {[%clk 0:02:11.4]} 26. Bc1 {[%clk 0:01:55.5]}
26... g4 {[%clk 0:02:04.8]} 27. Bb2 {[%clk 0:01:54.1]} 27... Bg5 {[%clk
0:01:56.4]} 28. Qe5 {[%clk 0:01:44.4]} 28... Bf6 {[%clk 0:01:53.4]} 29. Qf4
{[%clk 0:01:44.9]} 29... Kh7 {[%clk 0:01:47.8]} 30. Bxf6 {[%clk 0:01:39.9]}
30... Rxf6 {[%clk 0:01:48.7]} 31. Qe5 {[%clk 0:01:35.8]} 31... Rh6 {[%clk
0:01:44.4]} 32. Re2 {[%clk 0:01:07.7]} 32... Qd8 {[%clk 0:01:39.3]} 33. Qf4
{[%clk 0:01:07.6]} 33... Rxh5 {[%clk 0:01:36.6]} 34. Re5 {[%clk 0:01:07.2]}
34... Qh4 {[%clk 0:01:35.2]} 35. Rd3 {[%clk 0:01:04.6]} 35... a5 {[%clk
0:01:31.4]} 36. Kf1 {[%clk 0:01:01.9]} 36... a4 {[%clk 0:01:29.7]} 37. Rde3
{[%clk 0:00:59.6]} 37... axb3 {[%clk 0:01:27.2]} 38. axb3 {[%clk 0:00:59.8]}
38... Qg5 {[%clk 0:01:24.7]} 39. Qxg5 {[%clk 0:00:49.1]} 39... Rxg5 {[%clk
0:01:25.6]} 40. Rxe6 {[%clk 0:00:49.5]} 40... Bxe6 {[%clk 0:01:23.8]} 41. Rxe6
{[%clk 0:00:50.4]} 41... Rd8 {[%clk 0:01:21.6]} 42. Re5 {[%clk 0:00:22]} 42...
Rxd6 {[%clk 0:01:17.4]} 43. Rxc5 {[%clk 0:00:22.6]} 43... Rd1+ {[%clk
0:01:17.3]} 44. Ke2 {[%clk 0:00:22.6]} 44... Rb1 {[%clk 0:01:17.7]} 45. Bd5
{[%clk 0:00:20.1]} 45... Rb2+ {[%clk 0:01:15.8]} 46. Ke3 {[%clk 0:00:20]} 46...
Rxb3+ {[%clk 0:01:04.9]} 47. Kf4 {[%clk 0:00:20.5]} 47... Rg7 {[%clk 0:01:04.7]}
48. Kxf5 {[%clk 0:00:14.2]} 48... Rb2 {[%clk 0:01:04]} 49. Be4 {[%clk
0:00:11.4]} 49... Rxf2+ {[%clk 0:01:01.9]} 50. Ke6+ {[%clk 0:00:11.4]} 50... Kh6
{[%clk 0:01:01.4]} 51. Rc8 {[%clk 0:00:11]} 51... g3 {[%clk 0:00:59.3]} 52. c5
{[%clk 0:00:07.9]} 52... Re2 {[%clk 0:00:56.2]} 53. Rh8+ {[%clk 0:00:07.1]}
53... Kg5 {[%clk 0:00:55.8]} 54. Kd5 {[%clk 0:00:05.4]} 54... Rxe4 {[%clk
0:00:54.6]} 55. Kxe4 {[%clk 0:00:06.1]} 55... g2 {[%clk 0:00:54.1]} 0-1